[Event "*** SCC Grand Prix: Titled Tuesday Blitz"]
[Site "Chess.com"]
[Date "2020.08.11"]
[Round "4"]
[White "beatnoguera"]
[Black "JonasHilwerda"]
[Result "0-1"]
[WhiteElo "1800"]
[BlackElo "2195"]
[TimeControl "180+1"]
[EndTime "10:39:00 PDT"]
[Termination "JonasHilwerda won by resignation"]

1. e4 {[%clk 0:03:00.9]} 1... e5 {[%clk 0:02:59.8]} 2. Nf3 {[%clk 0:03:00.3]}
2... Nc6 {[%clk 0:03:00.5]} 3. d4 {[%clk 0:02:58.9]} 3... exd4 {[%clk
0:03:01.4]} 4. Nxd4 {[%clk 0:02:57.9]} 4... Nf6 {[%clk 0:03:01.6]} 5. Nxc6
{[%clk 0:02:55.5]} 5... bxc6 {[%clk 0:03:02.5]} 6. Nc3 {[%clk 0:02:54.5]} 6...
Bb4 {[%clk 0:03:01.5]} 7. Bd3 {[%clk 0:02:51.9]} 7... d5 {[%clk 0:03:01.4]} 8.
exd5 {[%clk 0:02:35.7]} 8... cxd5 {[%clk 0:03:02.3]} 9. Qe2+ {[%clk 0:02:35.2]}
9... Qe7 {[%clk 0:02:57.4]} 10. Bd2 {[%clk 0:02:18.4]} 10... Qxe2+ {[%clk
0:02:51.3]} 11. Bxe2 {[%clk 0:02:15.7]} 11... Bf5 {[%clk 0:02:46.8]} 12. O-O-O
{[%clk 0:02:09.9]} 12... c6 {[%clk 0:02:47.2]} 13. a3 {[%clk 0:02:08.1]} 13...
Ba5 {[%clk 0:02:42.5]} 14. Rhe1 {[%clk 0:02:06.2]} 14... O-O-O {[%clk
0:02:31.9]} 15. Ba6+ {[%clk 0:02:02.9]} 15... Kb8 {[%clk 0:02:25.5]} 16. Re7
{[%clk 0:01:56.2]} 16... Rd7 {[%clk 0:02:24.2]} 17. Rde1 {[%clk 0:01:54.1]}
17... Rhd8 {[%clk 0:02:19.9]} 18. Bf4+ {[%clk 0:01:48.9]} 18... Bc7 {[%clk
0:02:19.7]} 19. Bd2 {[%clk 0:01:40]} 19... Bd6 {[%clk 0:02:09.4]} 20. R7e2
{[%clk 0:01:34.3]} 20... Ne4 {[%clk 0:02:03.6]} 21. Nxe4 {[%clk 0:01:32.5]}
21... Bxe4 {[%clk 0:02:04.5]} 22. f3 {[%clk 0:01:30.4]} 22... Bf5 {[%clk
0:02:03.8]} 23. g4 {[%clk 0:01:29.3]} 23... Be6 {[%clk 0:01:57.9]} 24. h3 {[%clk
0:01:24.9]} 24... f6 {[%clk 0:01:55.2]} 25. Ba5 {[%clk 0:01:22.4]} 25... Bc7
{[%clk 0:01:52.3]} 26. Bb4 {[%clk 0:01:21.7]} 26... Bf7 {[%clk 0:01:41]} 27. Re3
{[%clk 0:01:18.5]} 27... Bf4 {[%clk 0:01:39.6]} 28. Kb1 {[%clk 0:01:16.5]} 28...
Bxe3 {[%clk 0:01:37.7]} 29. Rxe3 {[%clk 0:01:15.6]} 29... d4 {[%clk 0:01:37]}
30. Rd3 {[%clk 0:01:08.2]} 30... Re8 {[%clk 0:01:30.4]} 31. b3 {[%clk
0:01:06.9]} 31... Bg6 {[%clk 0:01:28.2]} 32. Rd1 {[%clk 0:01:04.2]} 32... Re3
{[%clk 0:01:27.5]} 33. Bd2 {[%clk 0:01:02.5]} 33... Rxb3+ {[%clk 0:01:24.7]} 34.
Ka2 {[%clk 0:01:01.5]} 34... Rxf3 {[%clk 0:00:43.2]} 35. Ba5 {[%clk 0:00:48.7]}
35... Bxc2 {[%clk 0:00:33.9]} 36. Re1 {[%clk 0:00:47.1]} 36... Re3 {[%clk
0:00:30.4]} 37. Rc1 {[%clk 0:00:45]} 37... Bb3+ {[%clk 0:00:29.4]} 38. Kb2
{[%clk 0:00:43.8]} 38... Bd5 {[%clk 0:00:22.3]} 39. Ka1 {[%clk 0:00:41.4]} 39...
Rxa3+ {[%clk 0:00:21.7]} 0-1

[Event "*** SCC Grand Prix: Titled Tuesday Blitz"]
[Site "Chess.com"]
[Date "2020.08.11"]
[Round "4"]
[White "redbaron8888"]
[Black "kleinebeer98"]
[Result "1-0"]
[WhiteElo "2421"]
[BlackElo "2637"]
[TimeControl "180+1"]
[EndTime "10:39:03 PDT"]
[Termination "redbaron8888 won on time"]

1. e4 {[%clk 0:02:38.4]} 1... e5 {[%clk 0:02:39.2]} 2. Nf3 {[%clk 0:02:38.1]}
2... Nc6 {[%clk 0:02:34.9]} 3. Bb5 {[%clk 0:02:38.1]} 3... f5 {[%clk 0:02:35.1]}
4. d3 {[%clk 0:02:35.5]} 4... fxe4 {[%clk 0:02:34.8]} 5. dxe4 {[%clk 0:02:35.7]}
5... Nf6 {[%clk 0:02:35.1]} 6. Nc3 {[%clk 0:02:32.9]} 6... Bb4 {[%clk 0:02:34]}
7. Bxc6 {[%clk 0:02:31.4]} 7... bxc6 {[%clk 0:02:31.5]} 8. O-O {[%clk
0:02:26.9]} 8... Bxc3 {[%clk 0:02:28.4]} 9. bxc3 {[%clk 0:02:26.5]} 9... d6
{[%clk 0:02:29.3]} 10. Nd2 {[%clk 0:02:22.4]} 10... O-O {[%clk 0:02:24.3]} 11.
f3 {[%clk 0:02:21.8]} 11... Be6 {[%clk 0:02:20.3]} 12. c4 {[%clk 0:02:21]} 12...
c5 {[%clk 0:02:19.4]} 13. Qe2 {[%clk 0:02:19.4]} 13... Nh5 {[%clk 0:02:18.7]}
14. Nb3 {[%clk 0:02:16.2]} 14... Qh4 {[%clk 0:02:12.3]} 15. Rb1 {[%clk
0:02:13.8]} 15... Rf6 {[%clk 0:02:07.2]} 16. Be3 {[%clk 0:02:12.3]} 16... Rg6
{[%clk 0:02:04.2]} 17. Na5 {[%clk 0:02:10.8]} 17... Rf8 {[%clk 0:01:56.5]} 18.
Rb7 {[%clk 0:02:08.2]} 18... Nf4 {[%clk 0:01:42]} 19. Bxf4 {[%clk 0:02:06.6]}
19... exf4 {[%clk 0:01:42.9]} 20. Qf2 {[%clk 0:01:53.2]} 20... Qh5 {[%clk
0:01:31.6]} 21. Kh1 {[%clk 0:01:50.9]} 21... Rh6 {[%clk 0:01:27.6]} 22. Qg1
{[%clk 0:01:50.8]} 22... Qe5 {[%clk 0:00:54.1]} 23. Nc6 {[%clk 0:01:36.1]} 23...
Qc3 {[%clk 0:00:49.9]} 24. Rxc7 {[%clk 0:01:35.2]} 24... Bxc4 {[%clk 0:00:42.2]}
25. Rd1 {[%clk 0:01:32.6]} 25... Kh8 {[%clk 0:00:29.6]} 26. e5 {[%clk
0:01:28.4]} 26... dxe5 {[%clk 0:00:20.3]} 27. Qxc5 {[%clk 0:01:24.9]} 27... Rhf6
{[%clk 0:00:16.7]} 28. Nxe5 {[%clk 0:01:19.7]} 28... Qxc2 {[%clk 0:00:16.5]} 29.
Rg1 {[%clk 0:01:18.3]} 29... Qxa2 {[%clk 0:00:09.1]} 30. Qxc4 {[%clk 0:01:14.3]}
30... Qf2 {[%clk 0:00:08.3]} 31. Nd3 {[%clk 0:01:12.3]} 31... Qh4 {[%clk
0:00:06.4]} 32. h3 {[%clk 0:01:04.8]} 32... Qg3 {[%clk 0:00:03.6]} 33. Rc8
{[%clk 0:01:00.3]} 33... h6 {[%clk 0:00:03.5]} 34. Rxf8+ {[%clk 0:00:59.5]}
34... Rxf8 {[%clk 0:00:04.4]} 35. Ne5 {[%clk 0:00:59.1]} 35... Rf6 {[%clk
0:00:01.9]} 36. Qe4 {[%clk 0:00:51.1]} 36... Kg8 {[%clk 0:00:01.1]} 37. Qd5+
{[%clk 0:00:50.9]} 37... Kh7 {[%clk 0:00:01.2]} 38. Nd7 {[%clk 0:00:50.3]} 1-0

[Event "*** SCC Grand Prix: Titled Tuesday Blitz"]
[Site "Chess.com"]
[Date "2020.08.11"]
[Round "4"]
[White "gmmoranda"]
[Black "Arseniy_Nesterov"]
[Result "1-0"]
[WhiteElo "2912"]
[BlackElo "2749"]
[TimeControl "180+1"]
[EndTime "10:39:05 PDT"]
[Termination "gmmoranda won by resignation"]

1. d4 {[%clk 0:03:00.9]} 1... d5 {[%clk 0:02:59.7]} 2. c4 {[%clk 0:03:00.4]}
2... c6 {[%clk 0:03:00]} 3. Nc3 {[%clk 0:03:00.3]} 3... Nf6 {[%clk 0:03:00.3]}
4. e3 {[%clk 0:03:00.9]} 4... e6 {[%clk 0:02:59.3]} 5. Nf3 {[%clk 0:03:01.3]}
5... Nbd7 {[%clk 0:02:58.5]} 6. Qc2 {[%clk 0:03:01.1]} 6... Bd6 {[%clk
0:02:58.3]} 7. Bd3 {[%clk 0:03:01.1]} 7... O-O {[%clk 0:02:56.8]} 8. O-O {[%clk
0:03:00.9]} 8... dxc4 {[%clk 0:02:55.5]} 9. Bxc4 {[%clk 0:03:01.8]} 9... b5
{[%clk 0:02:55.5]} 10. Be2 {[%clk 0:03:00.5]} 10... Bb7 {[%clk 0:02:54.9]} 11.
e4 {[%clk 0:02:59.9]} 11... e5 {[%clk 0:02:55]} 12. Rd1 {[%clk 0:02:59.3]} 12...
Qe7 {[%clk 0:02:53.1]} 13. g3 {[%clk 0:02:59.7]} 13... a6 {[%clk 0:02:46.9]} 14.
a3 {[%clk 0:02:43.1]} 14... exd4 {[%clk 0:02:38.6]} 15. Nxd4 {[%clk 0:02:42.3]}
15... g6 {[%clk 0:02:38.4]} 16. Bf3 {[%clk 0:02:38.7]} 16... c5 {[%clk
0:02:35.2]} 17. Nde2 {[%clk 0:02:38.6]} 17... Ne5 {[%clk 0:02:30.9]} 18. Bg2
{[%clk 0:02:38.5]} 18... b4 {[%clk 0:02:30.2]} 19. Nd5 {[%clk 0:02:21.9]} 19...
Nxd5 {[%clk 0:02:15]} 20. exd5 {[%clk 0:02:22.8]} 20... a5 {[%clk 0:02:12.7]}
21. h3 {[%clk 0:02:13.4]} 21... c4 {[%clk 0:02:08.3]} 22. Nd4 {[%clk 0:02:10.3]}
22... Rfc8 {[%clk 0:01:40.8]} 23. axb4 {[%clk 0:02:02.9]} 23... axb4 {[%clk
0:01:40.7]} 24. Rxa8 {[%clk 0:02:03]} 24... Bxa8 {[%clk 0:01:41.3]} 25. Bf4
{[%clk 0:02:00.8]} 25... Qd7 {[%clk 0:01:24.3]} 26. Nc6 {[%clk 0:01:55.9]} 26...
Nd3 {[%clk 0:01:09.1]} 27. Bxd6 {[%clk 0:01:48]} 27... Qxd6 {[%clk 0:01:08.2]}
28. Qxc4 {[%clk 0:01:43.5]} 28... Bxc6 {[%clk 0:00:49.2]} 29. Qxd3 {[%clk
0:01:41.2]} 29... Ba4 {[%clk 0:00:45.9]} 30. Re1 {[%clk 0:01:41]} 30... Qf6
{[%clk 0:00:40.3]} 31. d6 {[%clk 0:01:35.8]} 31... Rd8 {[%clk 0:00:31.3]} 32.
Qa6 {[%clk 0:01:34.8]} 32... Bc2 {[%clk 0:00:23.1]} 33. Qb6 {[%clk 0:01:33.4]}
33... Rxd6 {[%clk 0:00:19.3]} 34. Qxb4 {[%clk 0:01:32.3]} 34... Kg7 {[%clk
0:00:13.7]} 35. Qc5 {[%clk 0:01:31.5]} 35... Bf5 {[%clk 0:00:11]} 36. b4 {[%clk
0:01:31]} 36... h5 {[%clk 0:00:10.7]} 37. b5 {[%clk 0:01:27.6]} 37... Bd7 {[%clk
0:00:05.3]} 38. h4 {[%clk 0:01:23]} 38... Rb6 {[%clk 0:00:02.8]} 39. Rb1 {[%clk
0:01:16.7]} 39... Rb8 {[%clk 0:00:02.5]} 40. b6 {[%clk 0:01:15.1]} 40... Bf5
{[%clk 0:00:01.6]} 41. Rb4 {[%clk 0:01:14.9]} 41... Qa1+ {[%clk 0:00:02.1]} 42.
Kh2 {[%clk 0:01:14]} 42... Qa3 {[%clk 0:00:02.8]} 43. Qe5+ {[%clk 0:01:10.9]}
43... Kh7 {[%clk 0:00:02.7]} 44. Qxb8 {[%clk 0:01:09.9]} 44... Qxb4 {[%clk
0:00:03.2]} 45. Qc7 {[%clk 0:01:09.9]} 45... Kg7 {[%clk 0:00:02.6]} 46. b7
{[%clk 0:01:10]} 1-0

[Event "*** SCC Grand Prix: Titled Tuesday Blitz"]
[Site "Chess.com"]
[Date "2020.08.11"]
[Round "4"]
[White "Firouzja2003"]
[Black "GMHess"]
[Result "1-0"]
[WhiteElo "3041"]
[BlackElo "2819"]
[TimeControl "180+1"]
[EndTime "10:39:06 PDT"]
[Termination "Firouzja2003 won by resignation"]

1. e4 {[%clk 0:02:59]} 1... e5 {[%clk 0:02:56.7]} 2. Nf3 {[%clk 0:02:53.2]} 2...
Nc6 {[%clk 0:02:56.7]} 3. Bb5 {[%clk 0:02:51.7]} 3... Nf6 {[%clk 0:02:51.6]} 4.
d3 {[%clk 0:02:50]} 4... Ne7 {[%clk 0:02:51.9]} 5. d4 {[%clk 0:02:45.4]} 5... c6
{[%clk 0:02:46.5]} 6. dxe5 {[%clk 0:02:43.4]} 6... Nxe4 {[%clk 0:02:46.2]} 7.
Bd3 {[%clk 0:02:43.3]} 7... Nc5 {[%clk 0:02:27.1]} 8. O-O {[%clk 0:02:38.8]}
8... Nxd3 {[%clk 0:02:20.9]} 9. Qxd3 {[%clk 0:02:38.9]} 9... Ng6 {[%clk
0:02:21.1]} 10. Nc3 {[%clk 0:02:33.1]} 10... d5 {[%clk 0:02:15.4]} 11. exd6
{[%clk 0:02:31.9]} 11... Bxd6 {[%clk 0:01:56.6]} 12. Re1+ {[%clk 0:02:17.4]}
12... Be7 {[%clk 0:01:26.5]} 13. Qxd8+ {[%clk 0:02:11.8]} 13... Kxd8 {[%clk
0:01:27.4]} 14. Bg5 {[%clk 0:01:50.2]} 14... Be6 {[%clk 0:01:15.2]} 15. Rad1+
{[%clk 0:01:46.8]} 15... Ke8 {[%clk 0:01:11]} 16. Ne4 {[%clk 0:01:43.3]} 16...
Rd8 {[%clk 0:00:57.9]} 17. Rxd8+ {[%clk 0:01:32.5]} 17... Kxd8 {[%clk
0:00:58.8]} 18. Nc5 {[%clk 0:01:32.8]} 18... b6 {[%clk 0:00:21.2]} 19. Nxe6+
{[%clk 0:01:26.6]} 19... fxe6 {[%clk 0:00:22.1]} 20. Rxe6 {[%clk 0:01:23]} 20...
Kd7 {[%clk 0:00:22.7]} 21. Re2 {[%clk 0:01:13.5]} 21... Rf8 {[%clk 0:00:22]} 22.
Bxe7 {[%clk 0:01:09.6]} 22... Nxe7 {[%clk 0:00:22.9]} 23. Ne5+ {[%clk
0:01:10.3]} 23... Kd6 {[%clk 0:00:23.2]} 24. g3 {[%clk 0:01:09.1]} 24... b5
{[%clk 0:00:19.1]} 25. f4 {[%clk 0:01:03]} 25... Rf5 {[%clk 0:00:16.3]} 26. c4
{[%clk 0:01:00.7]} 26... g5 {[%clk 0:00:15.2]} 27. Rd2+ {[%clk 0:00:46.4]} 27...
Kc5 {[%clk 0:00:11.5]} 28. g4 {[%clk 0:00:29.5]} 28... Rxf4 {[%clk 0:00:07.7]}
29. Nd3+ {[%clk 0:00:30.1]} 29... Kxc4 {[%clk 0:00:08.1]} 30. Nxf4 {[%clk
0:00:31]} 30... gxf4 {[%clk 0:00:08.8]} 31. Kf2 {[%clk 0:00:31.8]} 31... Nd5
{[%clk 0:00:08]} 32. Kf3 {[%clk 0:00:30.3]} 32... c5 {[%clk 0:00:07.5]} 33. g5
{[%clk 0:00:30.7]} 33... a5 {[%clk 0:00:07.6]} 34. b3+ {[%clk 0:00:28.8]} 1-0

[Event "*** SCC Grand Prix: Titled Tuesday Blitz"]
[Site "Chess.com"]
[Date "2020.08.11"]
[Round "4"]
[White "Gabrielian_Artur"]
[Black "Bodnar_Mykola"]
[Result "0-1"]
[WhiteElo "2779"]
[BlackElo "2527"]
[TimeControl "180+1"]
[EndTime "10:39:07 PDT"]
[Termination "Bodnar_Mykola won by resignation"]

1. e4 {[%clk 0:03:00.9]} 1... e5 {[%clk 0:02:58.7]} 2. Nc3 {[%clk 0:03:00.6]}
2... Nf6 {[%clk 0:02:58.2]} 3. g3 {[%clk 0:03:00.6]} 3... Nc6 {[%clk 0:02:57.8]}
4. Bg2 {[%clk 0:03:00.4]} 4... Bc5 {[%clk 0:02:51.9]} 5. Nge2 {[%clk 0:02:59.8]}
5... a6 {[%clk 0:02:51.6]} 6. O-O {[%clk 0:02:59.4]} 6... O-O {[%clk 0:02:51.6]}
7. d3 {[%clk 0:02:59.6]} 7... Nd4 {[%clk 0:02:50.7]} 8. h3 {[%clk 0:02:56.6]}
8... b5 {[%clk 0:02:46.9]} 9. Nxd4 {[%clk 0:02:49]} 9... Bxd4 {[%clk 0:02:41.2]}
10. Kh2 {[%clk 0:02:48.4]} 10... Bb7 {[%clk 0:02:41.2]} 11. f4 {[%clk
0:02:37.7]} 11... exf4 {[%clk 0:02:29.8]} 12. Bxf4 {[%clk 0:02:30.1]} 12... d5
{[%clk 0:02:10.5]} 13. e5 {[%clk 0:01:51]} 13... Ne8 {[%clk 0:02:07.9]} 14. Qd2
{[%clk 0:01:29.9]} 14... f6 {[%clk 0:02:05.2]} 15. e6 {[%clk 0:01:12.2]} 15...
g5 {[%clk 0:01:59.1]} 16. Be3 {[%clk 0:00:56.2]} 16... Be5 {[%clk 0:01:38.8]}
17. d4 {[%clk 0:00:55.2]} 17... Bd6 {[%clk 0:01:37.1]} 18. Rae1 {[%clk 0:00:51]}
18... Ng7 {[%clk 0:01:29.4]} 19. Bg1 {[%clk 0:00:50.3]} 19... c6 {[%clk
0:01:15.8]} 20. Qe2 {[%clk 0:00:23.8]} 20... Qc7 {[%clk 0:01:13.4]} 21. Qf3
{[%clk 0:00:17.6]} 21... Rae8 {[%clk 0:01:12.3]} 22. Bf2 {[%clk 0:00:15.6]}
22... Bc8 {[%clk 0:01:04]} 23. Nd1 {[%clk 0:00:13.8]} 23... Bxe6 {[%clk
0:01:02.9]} 24. Ne3 {[%clk 0:00:13.8]} 24... Bd7 {[%clk 0:00:59.7]} 25. Ng4
{[%clk 0:00:12.9]} 25... f5 {[%clk 0:00:49]} 26. Nh6+ {[%clk 0:00:12.6]} 26...
Kh8 {[%clk 0:00:48.6]} 27. Rxe8 {[%clk 0:00:11.9]} 27... Bxe8 {[%clk 0:00:48.9]}
28. Re1 {[%clk 0:00:11.6]} 28... Bh5 {[%clk 0:00:48]} 29. Qd3 {[%clk 0:00:09.4]}
29... f4 {[%clk 0:00:45.9]} 30. Kh1 {[%clk 0:00:05.6]} 30... fxg3 {[%clk
0:00:44.2]} 31. Bg1 {[%clk 0:00:06.1]} 31... Rf6 {[%clk 0:00:39.5]} 32. Qe3
{[%clk 0:00:05.9]} 32... Rxh6 {[%clk 0:00:37.2]} 33. Qxg5 {[%clk 0:00:06.2]}
33... Rg6 {[%clk 0:00:37.2]} 34. Qf5 {[%clk 0:00:06.7]} 34... Nxf5 {[%clk
0:00:37.2]} 0-1

[Event "*** SCC Grand Prix: Titled Tuesday Blitz"]
[Site "Chess.com"]
[Date "2020.08.11"]
[Round "4"]
[White "sertalzin"]
[Black "BikingBrian"]
[Result "1/2-1/2"]
[WhiteElo "1837"]
[BlackElo "2186"]
[TimeControl "180+1"]
[EndTime "10:39:10 PDT"]
[Termination "Game drawn by repetition"]

1. d4 {[%clk 0:03:00.9]} 1... Nf6 {[%clk 0:02:58.9]} 2. c4 {[%clk 0:03:00.4]}
2... g6 {[%clk 0:02:57.8]} 3. Nc3 {[%clk 0:02:59.8]} 3... Bg7 {[%clk 0:02:57.5]}
4. e4 {[%clk 0:02:59.4]} 4... d6 {[%clk 0:02:58.2]} 5. f4 {[%clk 0:02:59.2]}
5... O-O {[%clk 0:02:58.5]} 6. Nf3 {[%clk 0:02:59]} 6... c5 {[%clk 0:02:58.7]}
7. d5 {[%clk 0:02:58.7]} 7... e6 {[%clk 0:02:59]} 8. Be2 {[%clk 0:02:58.1]} 8...
exd5 {[%clk 0:02:59.2]} 9. cxd5 {[%clk 0:02:58]} 9... Bg4 {[%clk 0:02:58.5]} 10.
O-O {[%clk 0:02:57.2]} 10... a6 {[%clk 0:02:46.5]} 11. h3 {[%clk 0:02:56.5]}
11... Bxf3 {[%clk 0:02:46.1]} 12. Bxf3 {[%clk 0:02:56.3]} 12... Nbd7 {[%clk
0:02:45.5]} 13. g4 {[%clk 0:02:55.8]} 13... b5 {[%clk 0:02:42.6]} 14. g5 {[%clk
0:02:55.3]} 14... Ne8 {[%clk 0:02:41.8]} 15. h4 {[%clk 0:02:46.1]} 15... f5
{[%clk 0:02:32]} 16. exf5 {[%clk 0:02:36.3]} 16... Bd4+ {[%clk 0:02:16]} 17. Kg2
{[%clk 0:02:33.3]} 17... Rxf5 {[%clk 0:02:15.7]} 18. Bg4 {[%clk 0:02:21.8]}
18... Rf8 {[%clk 0:02:02.2]} 19. Ne2 {[%clk 0:02:20.4]} 19... Bg7 {[%clk
0:01:55.6]} 20. Rh1 {[%clk 0:02:01.9]} 20... h5 {[%clk 0:01:39.7]} 21. Be6+
{[%clk 0:01:41.6]} 21... Kh7 {[%clk 0:01:37.8]} 22. Ng3 {[%clk 0:01:35.1]} 22...
Nc7 {[%clk 0:01:35]} 23. Nxh5 {[%clk 0:00:49.3]} 23... Nxe6 {[%clk 0:01:30.5]}
24. dxe6 {[%clk 0:00:47.6]} 24... Nb6 {[%clk 0:01:21.7]} 25. Nxg7 {[%clk
0:00:42.1]} 25... Kxg7 {[%clk 0:01:22.6]} 26. h5 {[%clk 0:00:41.9]} 26... Qe7
{[%clk 0:01:11.5]} 27. Qg4 {[%clk 0:00:25.1]} 27... Qb7+ {[%clk 0:01:03.2]} 28.
Kg1 {[%clk 0:00:20.8]} 28... Qe4 {[%clk 0:01:00.4]} 29. hxg6 {[%clk 0:00:16.9]}
29... Qe1+ {[%clk 0:00:55.5]} 30. Kg2 {[%clk 0:00:16.1]} 30... Qe4+ {[%clk
0:00:52]} 31. Kg1 {[%clk 0:00:13.8]} 31... Qe1+ {[%clk 0:00:51]} 32. Kg2 {[%clk
0:00:13.5]} 32... Qe4+ {[%clk 0:00:49.4]} 33. Kg1 {[%clk 0:00:11.9]} 1/2-1/2

[Event "*** SCC Grand Prix: Titled Tuesday Blitz"]
[Site "Chess.com"]
[Date "2020.08.11"]
[Round "4"]
[White "ChronicUnhappiness"]
[Black "Politov_Pavel"]
[Result "0-1"]
[WhiteElo "2350"]
[BlackElo "2083"]
[TimeControl "180+1"]
[EndTime "10:39:11 PDT"]
[Termination "Politov_Pavel won by resignation"]

1. d4 {[%clk 0:03:00.9]} 1... Nf6 {[%clk 0:02:58]} 2. c4 {[%clk 0:03:00.6]} 2...
e6 {[%clk 0:02:58.3]} 3. Nf3 {[%clk 0:02:59.5]} 3... d5 {[%clk 0:02:58.7]} 4.
Nc3 {[%clk 0:02:57]} 4... Nbd7 {[%clk 0:02:58.4]} 5. cxd5 {[%clk 0:02:54.9]}
5... exd5 {[%clk 0:02:58.4]} 6. Bg5 {[%clk 0:02:53.9]} 6... Bb4 {[%clk
0:02:58.7]} 7. e3 {[%clk 0:02:43.6]} 7... c5 {[%clk 0:02:58.2]} 8. Bd3 {[%clk
0:02:11.5]} 8... Qa5 {[%clk 0:02:54.2]} 9. O-O {[%clk 0:02:09.4]} 9... c4 {[%clk
0:02:50.5]} 10. Bf5 {[%clk 0:02:04.3]} 10... O-O {[%clk 0:02:48.5]} 11. Qc2
{[%clk 0:01:58.8]} 11... Re8 {[%clk 0:02:47]} 12. Bxd7 {[%clk 0:01:33.2]} 12...
Nxd7 {[%clk 0:02:45.5]} 13. a3 {[%clk 0:01:21.9]} 13... Bxc3 {[%clk 0:02:43.6]}
14. Qxc3 {[%clk 0:01:17]} 14... Qxc3 {[%clk 0:02:43.5]} 15. bxc3 {[%clk
0:01:17.7]} 15... Nb6 {[%clk 0:02:43.9]} 16. a4 {[%clk 0:01:14.7]} 16... Bd7
{[%clk 0:02:31.4]} 17. a5 {[%clk 0:01:13.6]} 17... Na4 {[%clk 0:02:31.6]} 18.
Rfc1 {[%clk 0:01:12.3]} 18... f6 {[%clk 0:02:28.5]} 19. Bf4 {[%clk 0:01:11.4]}
19... b5 {[%clk 0:02:28.8]} 20. Nd2 {[%clk 0:01:01.9]} 20... a6 {[%clk
0:02:21.1]} 21. Bd6 {[%clk 0:01:01.2]} 21... Nb2 {[%clk 0:02:18.9]} 22. Bb4
{[%clk 0:00:59.4]} 22... Nd3 {[%clk 0:02:19.1]} 23. Rcb1 {[%clk 0:00:58]} 23...
Bf5 {[%clk 0:02:17.7]} 24. Nf3 {[%clk 0:00:55.8]} 24... Be4 {[%clk 0:02:04.1]}
25. Ne1 {[%clk 0:00:55.3]} 25... Nxb4 {[%clk 0:01:41.9]} 26. Rxb4 {[%clk
0:00:54]} 26... g5 {[%clk 0:01:42]} 27. f3 {[%clk 0:00:53.9]} 27... Bg6 {[%clk
0:01:41.6]} 28. Kf2 {[%clk 0:00:54.1]} 28... Re6 {[%clk 0:01:41.8]} 29. g3
{[%clk 0:00:53.8]} 29... Rae8 {[%clk 0:01:42.1]} 30. Ng2 {[%clk 0:00:54]} 30...
h5 {[%clk 0:01:36.5]} 31. Rb2 {[%clk 0:00:52.5]} 31... Bd3 {[%clk 0:01:34.9]}
32. Re1 {[%clk 0:00:41.3]} 32... Kg7 {[%clk 0:01:32.4]} 33. h4 {[%clk
0:00:40.8]} 33... Kg6 {[%clk 0:01:30.1]} 34. f4 {[%clk 0:00:23.5]} 34... Be4
{[%clk 0:01:24.3]} 35. hxg5 {[%clk 0:00:22.2]} 35... fxg5 {[%clk 0:01:21.4]} 36.
fxg5 {[%clk 0:00:23.1]} 36... Bxg2 {[%clk 0:01:21]} 37. Kxg2 {[%clk 0:00:23.3]}
37... Rxe3 {[%clk 0:01:21.3]} 38. Rxe3 {[%clk 0:00:17.1]} 38... Rxe3 {[%clk
0:01:22.2]} 39. Rc2 {[%clk 0:00:15.9]} 39... Kxg5 {[%clk 0:01:22.2]} 40. Kf2
{[%clk 0:00:16.8]} 40... Rd3 {[%clk 0:01:22.4]} 41. Re2 {[%clk 0:00:15.6]} 41...
Kg4 {[%clk 0:01:16.5]} 42. Re6 {[%clk 0:00:13.3]} 42... Rxc3 {[%clk 0:01:13.5]}
43. Rxa6 {[%clk 0:00:13.4]} 43... b4 {[%clk 0:01:08]} 44. Rb6 {[%clk 0:00:11.8]}
44... b3 {[%clk 0:01:08.3]} 45. a6 {[%clk 0:00:12.7]} 45... Rc2+ {[%clk
0:01:08.7]} 46. Ke3 {[%clk 0:00:12.7]} 46... Ra2 {[%clk 0:01:09.6]} 47. Rxb3
{[%clk 0:00:02.6]} 47... cxb3 {[%clk 0:01:08.4]} 48. a7 {[%clk 0:00:03.5]} 48...
b2 {[%clk 0:01:08.1]} 0-1

[Event "*** SCC Grand Prix: Titled Tuesday Blitz"]
[Site "Chess.com"]
[Date "2020.08.11"]
[Round "4"]
[White "PavlovDanila"]
[Black "sergiochess83"]
[Result "0-1"]
[WhiteElo "2669"]
[BlackElo "2830"]
[TimeControl "180+1"]
[EndTime "10:39:12 PDT"]
[Termination "sergiochess83 won by resignation"]

1. e4 {[%clk 0:03:00.9]} 1... c6 {[%clk 0:02:59.5]} 2. Nf3 {[%clk 0:03:00.8]}
2... d5 {[%clk 0:02:59.7]} 3. Nc3 {[%clk 0:03:01.3]} 3... Bg4 {[%clk 0:02:58.8]}
4. h3 {[%clk 0:03:00.8]} 4... Bxf3 {[%clk 0:02:58.3]} 5. Qxf3 {[%clk 0:03:01.7]}
5... Nf6 {[%clk 0:02:58.8]} 6. d3 {[%clk 0:03:02]} 6... e6 {[%clk 0:02:58.2]} 7.
g4 {[%clk 0:03:02.2]} 7... Bb4 {[%clk 0:02:56.6]} 8. Bd2 {[%clk 0:03:02.1]} 8...
O-O {[%clk 0:02:56.6]} 9. g5 {[%clk 0:03:01.1]} 9... Nfd7 {[%clk 0:02:55.6]} 10.
h4 {[%clk 0:03:01.2]} 10... d4 {[%clk 0:02:44.5]} 11. Nb1 {[%clk 0:02:59.7]}
11... c5 {[%clk 0:02:45.1]} 12. a3 {[%clk 0:02:59]} 12... Bxd2+ {[%clk
0:02:41.6]} 13. Nxd2 {[%clk 0:02:59.9]} 13... Nc6 {[%clk 0:02:42.1]} 14. Qg3
{[%clk 0:02:56.9]} 14... b5 {[%clk 0:02:30.6]} 15. f4 {[%clk 0:02:50.6]} 15...
Rc8 {[%clk 0:02:27.2]} 16. Be2 {[%clk 0:02:49]} 16... Qe7 {[%clk 0:02:16.3]} 17.
O-O {[%clk 0:02:44.7]} 17... f5 {[%clk 0:02:09.9]} 18. Rae1 {[%clk 0:02:32.6]}
18... Qd6 {[%clk 0:01:57.7]} 19. Bf3 {[%clk 0:02:08.9]} 19... Nb6 {[%clk
0:01:52.4]} 20. Rf2 {[%clk 0:01:17]} 20... Ne7 {[%clk 0:01:43.7]} 21. Rfe2
{[%clk 0:01:10.9]} 21... c4 {[%clk 0:01:39.1]} 22. Qh2 {[%clk 0:00:59.8]} 22...
Ng6 {[%clk 0:01:20.4]} 23. exf5 {[%clk 0:00:48]} 23... exf5 {[%clk 0:00:38.7]}
24. h5 {[%clk 0:00:47]} 24... Nxf4 {[%clk 0:00:35.7]} 25. Re7 {[%clk 0:00:47.4]}
25... cxd3 {[%clk 0:00:31.7]} 26. cxd3 {[%clk 0:00:44.7]} 26... Rc2 {[%clk
0:00:30.5]} 27. h6 {[%clk 0:00:44.4]} 27... gxh6 {[%clk 0:00:28.8]} 28. gxh6
{[%clk 0:00:40.1]} 28... Kh8 {[%clk 0:00:27.6]} 29. Rg7 {[%clk 0:00:28]} 29...
Nc8 {[%clk 0:00:27.3]} 30. Kh1 {[%clk 0:00:22.4]} 30... Rxd2 {[%clk 0:00:21.3]}
31. Qh4 {[%clk 0:00:22.3]} 31... Rxd3 {[%clk 0:00:17.6]} 32. Bb7 {[%clk
0:00:14.8]} 32... Rh3+ {[%clk 0:00:16.3]} 33. Qxh3 {[%clk 0:00:14.8]} 33... Nxh3
{[%clk 0:00:17.2]} 0-1